[Event "Turkish Youth Teams U18 2024"]
[Site "Karaman"]
[Date "2024.04.22"]
[Round "4"]
[White "Dirikolu, Deniz"]
[Black "Engin, Onur Cinar"]
[Result "1-0"]
[ECO "B15"]
[WhiteElo "1890"]
[BlackElo "2101"]
[Annotator "TA"]
[PlyCount "147"]
[EventDate "2024.04.21"]
[EventType "team-tourn"]
[EventCountry "TUR"]
[SourceTitle "playchess.com"]
[Source "ChessBase"]
[SourceQuality "1"]
[TimeControl "5400+30"]

{[%evp 28,147,54,-82,66,-9,-8,-13,-10,-10,0,-40,0,0,0,0,33,-33,-33,-42,-42,-23,-12,-24,-25,-16,-26,-20,-29,-53,-34,-70,-50,-50,-56,-67,-69,-53,-50,-52,-8,-8,-8,-8,-8,-11,-12,-16,0,-12,0,0,0,0,0,0,0,0,0,0,0,4,295,128,128,103,576,576,290,74,722,708,1279,1145,4710,4710,29975,29976,29981,29981,29982,29973,29973,596,588,424,29974,30,30,0,29974,29975,29975,29976,29976,29977,29977,29978,29978,29979,29979,29980,29980,30,30,0,30,0,29980,29981,29981,29982,29982,29983,29983,29984,29984,29985,29986,29987,29988,29989]} 1. e4 {[%emt 0:03:00]} c6 {[%emt 0:01:00]} 2. d4 {[%emt 0:00:00]} d5 {[%emt 0:00:30]} 3. Nc3 {[%emt 0:00:00]} dxe4 {[%emt 0:00:30]} 4. Nxe4 {[%emt 0:00:30]} Nf6 {[%emt 0:00:00]} 5. Nxf6+ {[%emt 0:00:00]} exf6 {[%emt 0:01:00]} 6. Bd3 {[%emt 0:00:00] B15: Caro-Kann: 3 Nc3: 3...g6 and 3...dxe4 4 Nxe4 Nf6 5 Nxf6+ exf6.} Qxd4 {[%emt 0:00:30]} 7. Nf3 {[%emt 0:00:30]} Qd8 {[%emt 0:05:30]} 8. O-O {[%emt 0:00:30]} Be7 {[%emt 0:01:30]} 9. Re1 {[%emt 0:00:00]} O-O {[%emt 0:04:30]} 10. Bf4 {[%emt 0:00:00]} Bg4 {[%emt 0:18:30]} 11. h3 {[%emt 0:01:30]} Bd7 $146 {[%emt 0:11:30]} ({Predecessor:} 11... Bh5 12. Qe2 Bd6 13. Bxd6 Qxd6 14. Rad1 Qf4 15. g4 Bg6 16. Bxg6 hxg6 17. Rd4 Qc7 {0-1 Postny,E (2549)-Ivic,V (2595) Titled Tuesday intern op 16th May Early blitz 2023 (6)}) 12. c3 {[%emt 0:39:30]} Re8 {[%emt 0:15:30]} 13. Qb3 {[%emt 0:00:30]} Rf8 {[%emt 0:00:30]} 14. Qd1 {[%emt 0:00:30]} Na6 {[%emt 0:00:30]} 15. Qb3 {[%emt 0:00:30]} (15. Qd2 $1 $14 {stays ahead.} Nc5 16. Bc2) 15... Re8 {[%emt 0:00:30]} (15... Nc5 $17 16. Qc2 Nxd3 17. Qxd3 Be6) 16. Bxa6 {[%emt 0:00:30]} (16. Qxb7 $2 Nc5 17. Bxh7+ Kxh7 $19) (16. Rad1 $1 $14 Bf8 (16... Nc5 17. Bxh7+ Kf8 18. Qc4 $18) 17. Bc4 (17. Qxb7 Nc5 $11) (17. Rxe8 Qxe8 18. Re1 Qc8 $11) 17... Rxe1+ 18. Rxe1 (18. Nxe1 Nc5 $14)) 16... bxa6 $11 {[%emt 0:00:30]} 17. Rad1 {[%emt 0:05:30]} Qc8 {[%emt 0:05:30]} 18. Qa4 {[%emt 0:00:30]} Qb7 {[%emt 0:03:30]} 19. Rd2 {[%emt 0:02:30]} Rad8 {[%emt 0:07:30]} 20. Red1 {[%emt 0:00:30]} Be6 {[%emt 0:08:38]} 21. Nd4 {[%emt 0:01:30]} Bd5 {[%emt 0:01:47]} 22. c4 {[%emt 0:00:30]} ({White should play} 22. Nf5 $14) 22... Be4 $15 {[%emt 0:00:04]} 23. Nb3 {[%emt 0:03:30]} Bc2 {[%emt 0:05:26]} 24. Re1 {[%emt 0:05:30]} Bxb3 {[%emt 0:03:12]} 25. Qxb3 {[%emt 0:01:30]} Qxb3 {[%emt 0:01:00]} 26. axb3 {[%emt 0:00:30]} Bc5 {[%emt 0:00:37]} 27. Rxd8 {[%emt 0:01:30]} Rxd8 {[%emt 0:00:32]} 28. Ra1 {[%emt 0:00:00]} g5 {[%emt 0:02:06]} 29. Bg3 {[%emt 0:00:00]} Rd3 {[%emt 0:00:37]} (29... a5 $5 30. Rxa5 Bb6 $17) 30. Rxa6 {[%emt 0:06:30]} Rxg3 {[%emt 0:00:44]} 31. Rxc6 {[%emt 0:00:00]} Bd4 {[%emt 0:00:29]} 32. Rd6 $1 {[%emt 0:00:00]} Rd3 {[%emt 0:00:26]} 33. Kf1 {[%emt 0:00:00]} Rd2 {[%emt 0:01:32]} (33... Rxb3 {simplifies} 34. Rxd4 Rxb2 35. g4 Kg7) 34. Ke1 {[%emt 0:00:00]} Rxf2 {[%emt 0:00:00]} 35. Rxd4 {[%emt 0:00:30]} Rxb2 {[%emt 0:00:24]} 36. c5 {[%emt 0:03:30]} Rxb3 {[%emt 0:00:50]} (36... Rxg2 $2 37. c6 Rg1+ 38. Kf2 $18 (38. Kd2 Rg2+ 39. Ke1 Rg1+ 40. Kf2 Rb1 $18)) 37. Kd2 {[%emt 0:00:30]} Rb7 {[%emt 0:00:40]} 38. g4 {[%emt 0:00:30]} Rc7 {[%emt 0:00:30]} 39. Rd5 {[%emt 0:00:30]} Kf8 {[%emt 0:00:01]} 40. Kd3 {[%emt 0:00:30]} Ke7 {[%emt 0:01:14]} 41. Kc4 {[%emt 0:00:00]} Ke6 {[%emt 0:00:22]} (41... Rd7 $5 42. Rf5 $8 Ke6 $11) 42. Rd1 {[%emt 0:01:00]} Ke5 {[%emt 0:00:30]} 43. Re1+ {[%emt 0:00:30]} Kf4 {[%emt 0:00:30]} 44. Kd5 {[%emt 0:00:30]} a5 $2 {[%emt 0:00:30][%mdl 8192]} (44... Rd7+ $1 $11 {and Black has nothing to worry.} 45. Kc6 Rd3) 45. Kd6 {[%emt 0:00:30]} (45. c6 $18 {is more deadly.}) 45... Rc8 $16 {[%emt 0:00:30]} 46. c6 {[%emt 0:00:30]} Kg3 $2 {[%emt 0:00:30][%mdl 8192]} (46... f5 $16 {is more resistant.}) 47. Re3+ $18 {[%emt 0:00:00]} Kf4 {[%emt 0:00:01] [#]} 48. Ra3 $2 {[%emt 0:00:00]} (48. Rc3 $1 $18 {is the precise move to win.} f5 49. Kd7) 48... Ra8 $2 {[%emt 0:00:30][%mdl 8192]} (48... f5 $16) 49. c7 $18 {[%emt 0:00:30]} f5 {[%emt 0:00:30]} 50. Rxa5 {[%emt 0:00:30]} Rg8 {[%emt 0:00:30]} 51. gxf5 {[%emt 0:00:30]} h5 {[%emt 0:00:30]} 52. f6 {[%emt 0:00:00]} g4 {[%emt 0:01:13]} 53. hxg4 {[%emt 0:00:00]} hxg4 {[%emt 0:00:30]} 54. Kd7 {[%emt 0:00:30]} g3 {[%emt 0:00:00]} 55. Ra1 {[%emt 0:09:30]} (55. c8=B g2 56. Ra1 g1=Q (56... g1=R 57. Rxg1 Rxg1 58. Ke7 $11) 57. Rxg1 Rxg1 $15) (55. c8=Q $142 Rxc8 56. Kxc8 g2 57. Ra1 Kg5 58. Rg1 Kxf6 59. Rxg2 Ke6 60. Kc7) 55... Ke5 $18 {[%emt 0:00:55]} 56. Rf1 {[%emt 0:03:45]} (56. c8=B Kxf6 57. Bb7 Kg5 $11) (56. c8=R Rxc8 57. Ra5+ (57. Kxc8 Kxf6 58. Kd7 Ke5 $11) 57... Kxf6 58. Kxc8 g2 $11) 56... Ra8 {[%emt 0:00:35]} (56... g2 $18 57. Rg1 (57. c8=R $2 gxf1=Q 58. Rxg8 Qxf6 $19) 57... Kxf6 58. Rxg2 (58. c8=B Rg5 $11) (58. c8=Q Rxc8 59. Rxg2 Ra8 $15) 58... Rxg2) 57. Ke7 $2 {[%emt 0:02:16]} (57. c8=B g2 58. Rg1 Kxf6 $11) (57. c8=Q Rxc8 58. Kxc8 g2 59. Rg1 Kxf6 60. Rxg2 Ke6 61. Re2+ Kd6 62. Rf2) 57... Rc8 $11 {[%emt 0:00:13]} 58. Kd7 $2 {[%emt 0:00:13][%mdl 8192]} (58. Rc1 $11 g2 59. Kd7 (59. Kxf7 $2 {loses.} Rxc7+ 60. Rxc7 g1=Q $19) 59... Rxc7+ 60. Kxc7 Kxf6 61. Kd6) 58... Ra8 $1 {[%emt 0:00:43]} 59. c8=Q {[%emt 0:00:59]} ({And not} 59. c8=B g2 60. Rg1 Rb8 $11 (60... Kxf6 61. Rxg2 Ra5 62. Rh2 $16)) 59... Rxc8 {[%emt 0:00:30]} 60. Kxc8 {[%emt 0:00:30]} g2 {[%emt 0:00:30]} 61. Rg1 {[%emt 0:00:30]} Kxf6 {[%emt 0:00:30]} 62. Rxg2 {[%emt 0:00:30]} Ke5 {[%emt 0:00:30]} 63. Re2+ {[%emt 0:00:00]} Kd5 {[%emt 0:00:00] [#]} 64. Rf2 $1 {[%emt 0:00:04]} Ke6 {[%emt 0:00:00]} 65. Ra2 $2 {[%emt 0:00:00]} (65. Kc7 {mates} f5 66. Kc6 Ke5 67. Kc5 Ke4 68. Kc4 Ke5 69. Re2+ Kd6 70. Kd4) 65... Ke5 $1 $11 {[%emt 0:00:38]} 66. Re2+ {[%emt 0:04:28]} Kd5 $1 {[%emt 0:00:01]} 67. Rf2 {[%emt 0:00:30]} Ke6 {[%emt 0:00:30]} 68. Kc7 {[%emt 0:00:30]} f5 {[%emt 0:00:30]} 69. Kc6 {[%emt 0:00:30]} Ke5 {[%emt 0:00:00]} 70. Kc5 {[%emt 0:00:07]} Ke4 {[%emt 0:00:00]} 71. Kc4 {[%emt 0:00:30]} f4 {[%emt 0:00:00]} 72. Re2+ {[%emt 0:00:00]} Kf3 {[%emt 0:00:00]} 73. Kd3 {[%emt 0:00:24]} Kg3 {[%emt 0:00:13]} 74. Ke4 {[%emt 0:00:00]} 1-0

[Event "Turkish Youth Teams U18 2024"]
[Site "Karaman"]
[Date "2024.04.22"]
[Round "4"]
[White "Simsek, Ayaz"]
[Black "Pehlivan, Meric"]
[Result "1-0"]
[ECO "B22"]
[WhiteElo "1867"]
[BlackElo "1558"]
[Annotator "NA RC COMBH"]
[PlyCount "55"]
[EventDate "2024.04.21"]
[EventType "team-tourn"]
[EventCountry "TUR"]
[SourceTitle "playchess.com"]
[Source "ChessBase"]
[SourceQuality "1"]
[TimeControl "5400+30"]

1. e4 {[%emt 0:04:00]} c5 {[%emt 0:01:00]} 2. c3 {[%emt 0:00:30]} Nf6 {[%emt 0:00:30]} 3. e5 {[%emt 0:00:30]} Nd5 {[%emt 0:00:30]} 4. Nf3 {[%emt 0:00:30]} Nc6 {[%emt 0:00:00]} 5. d4 {[%emt 0:00:00]} cxd4 {[%emt 0:00:00]} 6. cxd4 {[%emt 0:00:00]} d6 {[%emt 0:00:00]} 7. Bc4 {[%emt 0:00:30]} Nb6 {[%emt 0:00:00]} 8. Bb3 {[%emt 0:00:00]} dxe5 {[%emt 0:00:00]} 9. d5 {[%emt 0:00:00]} Nd4 {[%emt 0:04:00] B22: Sicilian: 2 c3.} 10. Nxd4 {[%emt 0:02:30]} exd4 {[%emt 0:00:00]} 11. Qxd4 {[%emt 0:00:30]} e6 {[%emt 0:00:00]} 12. Nc3 {[%emt 0:01:30]} Qf6 {[%emt 0:06:30]} 13. Be3 {[%emt 0:01:30]} Qxd4 {[%emt 0:01:30]} 14. Bxd4 {[%emt 0:00:30]} exd5 {[%emt 0:00:00]} 15. O-O {[%emt 0:03:30]} Be6 {[%emt 0:03:00]} 16. Rfe1 {[%emt 0:02:30]} O-O-O {[%emt 0:00:30]} 17. Nb5 {[%emt 0:01:30]} Nc4 {[%emt 0:12:30]} 18. Nxa7+ {[%emt 0:01:30]} Kb8 {[%emt 0:00:30]} 19. Nb5 {[%emt 0:05:30]} Bb4 {[%emt 0:03:30]} 20. Red1 {[%emt 0:06:30]} Rhg8 {[%emt 0:07:30]} 21. Rd3 {[%emt 0:10:30]} (21. Bc2 $16) 21... Na5 {[%emt 0:12:30]} 22. a3 {[%emt 0:05:30]} Nxb3 $16 {[%emt 0:01:30]} 23. Rxb3 {[%emt 0:00:00]} Be7 {[%emt 0:02:30]} 24. Be5+ {[%emt 0:00:00]} Ka8 {[%emt 0:01:30]} 25. Rb4 {[%emt 0:00:30]} b6 {[%emt 0:02:30]} 26. Ra4+ {[%emt 0:00:30]} Kb7 {[%emt 0:00:30]} 27. Ra7+ {[%emt 0:00:30]} Kc6 {[%emt 0:00:30]} 28. Nd4+ {[%emt 0:00:00]} 1-0

[Event "Turkish Youth Teams U18 2024"]
[Site "Karaman"]
[Date "2024.04.22"]
[Round "4"]
[White "Pekkul, Arda"]
[Black "Camlar, Arda"]
[Result "0-1"]
[ECO "B28"]
[WhiteElo "1840"]
[BlackElo "2389"]
[Annotator "TA"]
[PlyCount "66"]
[EventDate "2024.04.21"]
[EventType "team-tourn"]
[EventCountry "TUR"]
[SourceTitle "playchess.com"]
[Source "ChessBase"]
[SourceQuality "1"]
[TimeControl "5400+30"]

{[%evp 14,66,20,24,23,21,28,16,28,11,40,0,0,0,0,0,13,0,0,0,0,0,0,-62,-50,-51,-62,-66,-58,-62,-67,-49,-39,-49,-27,-87,-66,-146,-103,-143,-151,-162,-152,-141,-156,-200,-211,-243,-240,-293,-254,-364,-352,-1150,-342]} 1. e4 {[%emt 0:01:00]} c5 {[%emt 0:03:00]} 2. Nf3 {[%emt 0:00:00]} a6 {[%emt 0:00:30]} 3. c4 {[%emt 0:01:00]} Nc6 {[%emt 0:00:30]} 4. d4 {[%emt 0:00:30]} cxd4 {[%emt 0:00:30]} 5. Nxd4 {[%emt 0:00:00]} e5 {[%emt 0:00:00]} 6. Nc2 {[%emt 0:02:00]} Nf6 {[%emt 0:00:00]} 7. Nc3 {[%emt 0:00:30]} Bc5 {[%emt 0:00:30][%cal Bf8c5,Bc5a7,Ba7d4][%mdl 32]} 8. Be2 {[%emt 0:02:30]} d6 {[%emt 0:00:30]} 9. O-O {[%emt 0:00:30][%cal Ob2b4]} h6 {[%emt 0:00:30]} 10. Rb1 {[%emt 0:13:30]} Be6 {[%emt 0:13:30] The position is equal.} 11. Qd3 {[%emt 0:06:30]} Nd4 {[%emt 0:07:30]} 12. b4 {[%emt 0:04:30]} (12. Be3 $5) 12... Ba7 {[%emt 0:00:30][%cal Oe6c4] White must now prevent ...Bxc4!} 13. Nxd4 {[%emt 0:01:30]} Bxd4 {[%emt 0:00:30]} 14. Nd5 {[%emt 0:01:30]} Bxd5 {[%emt 0:04:30]} 15. exd5 {[%emt 0:00:30]} O-O {[%emt 0:00:30]} 16. Be3 {[%emt 0:01:30]} Bxe3 {[%emt 0:01:30]} 17. Qxe3 {[%emt 0:00:00]} a5 {[%emt 0:00:30]} 18. bxa5 {[%emt 0:12:00]} (18. a3 $11) 18... Rxa5 $15 {[%emt 0:02:30]} 19. Rxb7 {[%emt 0:03:30]} Rxa2 {[%emt 0:00:30]} 20. Rfb1 {[%emt 0:06:30]} Nd7 $1 {[%emt 0:00:30] Dodges R7b6} 21. Ra7 {[%emt 0:08:30]} Rxa7 {[%emt 0:01:30]} 22. Qxa7 {[%emt 0:00:30]} Nc5 {[%emt 0:00:00]} 23. g3 {[%emt 0:01:30]} f5 {[%emt 0:02:00][%cal Bf7f5,Bf5f4,Bf4f3][%mdl 32]} 24. Bf1 {[%emt 0:12:44]} (24. Rb5 $11) 24... e4 {[%emt 0:00:30]} 25. Re1 {[%emt 0:01:08]} (25. Be2 $15) 25... Qf6 {[%emt 0:04:30]} 26. Qa1 {[%emt 0:00:30]} Qg6 $1 {[%emt 0:00:30] Black is more active.} 27. Qd4 {[%emt 0:01:53]} f4 {[%emt 0:01:30]} 28. Bg2 {[%emt 0:00:09][%cal Rg2e4] [#]} f3 $1 {[%emt 0:03:30]} 29. Bf1 {[%emt 0:00:19] [#]} Qf6 $1 {[%emt 0:00:30]} 30. Qd2 {[%emt 0:00:52]} Rb8 {[%emt 0:00:30]} 31. Rd1 {[%emt 0:01:58]} Rb2 {[%emt 0:01:30]} 32. Qe3 {[%emt 0:00:49]} (32. Qe1 {is a better defense.}) 32... Rb3 $19 {[%emt 0:00:30]} 33. Qe1 {[%emt 0:00:00]} (33. Qd2) 33... Qc3 $2 {[%emt 0:00:30] Weighted Error Value: White=0.46/Black=0.07 (flawless) .  Mistake:       	White=5     	Black=1      Inaccurate:     	White=2     	Black=1      OK:         	White=5     	Black=8      Best:        	---       	Black=3      Strong:       	---       	Black=3} (33... e3 34. fxe3 Ne4) 0-1

[Event "Turkish Youth Teams U18 2024"]
[Site "Karaman"]
[Date "2024.04.22"]
[Round "4"]
[White "Karabulut, Etka"]
[Black "Donmez, Tahsin Efe"]
[Result "1-0"]
[ECO "B23"]
[WhiteElo "1815"]
[BlackElo "1672"]
[Annotator "NA RC COMBH"]
[PlyCount "71"]
[EventDate "2024.04.21"]
[EventType "team-tourn"]
[EventCountry "TUR"]
[SourceTitle "playchess.com"]
[Source "ChessBase"]
[SourceQuality "1"]
[TimeControl "5400+30"]

1. e4 {[%emt 0:01:00]} c5 {[%emt 0:01:00]} 2. Nc3 {[%emt 0:00:00]} Nc6 {[%emt 0:00:30]} 3. Bb5 {[%emt 0:00:00]} Nd4 {[%emt 0:00:30]} 4. Nf3 {[%emt 0:00:30]} Nxb5 {[%emt 0:00:30]} 5. Nxb5 {[%emt 0:00:30]} a6 {[%emt 0:00:00]} 6. Nc3 {[%emt 0:00:00]} e6 {[%emt 0:01:00]} 7. d4 {[%emt 0:00:00]} cxd4 {[%emt 0:00:30]} 8. Qxd4 {[%emt 0:00:00]} b5 {[%emt 0:02:30]} 9. Bf4 {[%emt 0:05:00]} Bb7 {[%emt 0:05:30]} 10. O-O-O {[%emt 0:05:30]} Nf6 {[%emt 0:12:30]} 11. Rhe1 {[%emt 0:09:30]} Be7 {[%emt 0:01:30]} 12. Bd6 {[%emt 0:02:30]} O-O {[%emt 0:35:30]} 13. Ne5 {[%emt 0:13:30]} Bxd6 {[%emt 0:02:30]} 14. Qxd6 {[%emt 0:00:30]} Qa5 {[%emt 0:00:00]} 15. Rd4 {[%emt 0:00:30]} Rac8 $14 {[%emt 0:07:00]} 16. Re3 {[%emt 0:11:30]} (16. Nxd7 $2 {loses.} Nxd7 17. a3 (17. Qxd7 $2 {perishes.} Rcd8 $19) 17... Nb6 $19) 16... Ba8 {[%emt 0:25:11]} 17. a3 {[%emt 0:04:30]} Qc7 {[%emt 0:02:12]} 18. f3 {[%emt 0:02:30]} Qxd6 {[%emt 0:00:30]} 19. Rxd6 {[%emt 0:00:30]} Bc6 {[%emt 0:00:17]} 20. Red3 {[%emt 0:01:30]} Ne8 {[%emt 0:00:53]} 21. Nxc6 {[%emt 0:00:30]} dxc6 {[%emt 0:00:20]} 22. Rd7 {[%emt 0:00:00]} Rc7 {[%emt 0:00:29]} 23. Rxc7 {[%emt 0:00:00]} Nxc7 {[%emt 0:00:16]} 24. Rd6 {[%emt 0:00:30]} Rc8 {[%emt 0:00:26]} 25. Rxc6 {[%emt 0:00:30]} Kf8 {[%emt 0:00:00]} 26. a4 {[%emt 0:01:30]} b4 {[%emt 0:00:28]} 27. Na2 {[%emt 0:00:30]} Ke7 {[%emt 0:00:12]} 28. Nxb4 {[%emt 0:00:30]} Kd7 {[%emt 0:00:07]} 29. Rc3 {[%emt 0:00:30]} a5 {[%emt 0:00:30]} 30. Rd3+ {[%emt 0:00:30]} Ke8 {[%emt 0:00:11]} 31. Nc6 {[%emt 0:00:00]} Na6 {[%emt 0:00:30]} 32. Nxa5 {[%emt 0:00:00]} Nb4 {[%emt 0:00:00]} 33. Rd2 {[%emt 0:00:30]} Ra8 {[%emt 0:00:00]} 34. Rd4 {[%emt 0:00:30]} Nxc2 {[%emt 0:00:50]} 35. Kxc2 {[%emt 0:00:30]} Rxa5 {[%emt 0:00:30]} 36. Kb3 {[%emt 0:00:00]} 1-0

[Event "Turkish Youth Teams U18 2024"]
[Site "Karaman"]
[Date "2024.04.22"]
[Round "4"]
[White "Basdar, Atakan"]
[Black "Yalcinkaya, Efe"]
[Result "1/2-1/2"]
[ECO "A04"]
[WhiteElo "1808"]
[BlackElo "2033"]
[Annotator "TA"]
[PlyCount "94"]
[EventDate "2024.04.21"]
[EventType "team-tourn"]
[EventCountry "TUR"]
[SourceTitle "playchess.com"]
[Source "ChessBase"]
[SourceQuality "1"]
[TimeControl "5400+30"]

{[%evp 17,94,-10,7,-37,-29,-36,-31,-82,8,-45,-43,-39,-52,-55,-56,-111,-34,-62,-4,-8,-5,-9,-17,-17,-14,-52,-49,-49,-60,-66,-66,-62,-34,-38,-34,-37,-40,-41,-43,-39,-33,-38,-22,-195,-13,-22,0,0,0,0,0,0,0,0,0,0,17,14,14,8,27,29,24,8,9,0,120,8,8,1,8,0,59,0,8,8,12,8,8]} 1. Nf3 {[%emt 0:02:00]} c5 {[%emt 0:01:00]} 2. g3 {[%emt 0:00:30]} Nc6 {[%emt 0:00:00]} 3. Bg2 {[%emt 0:00:30]} g6 {[%emt 0:00:00]} 4. O-O {[%emt 0:00:30]} Bg7 {[%emt 0:00:00]} 5. e4 {[%emt 0:00:30]} e5 {[%emt 0:00:00]} 6. d3 {[%emt 0:01:30]} Nge7 {[%emt 0:00:30]} 7. c3 {[%emt 0:00:00]} O-O {[%emt 0:00:30]} 8. Be3 {[%emt 0:02:00]} d6 {[%emt 0:01:30]} 9. Qd2 {[%emt 0:02:30]} f5 {[%emt 0:04:30]} 10. Bh6 {[%emt 0:02:30] [#]} f4 $1 {[%emt 0:00:30]} 11. Bxg7 {[%emt 0:00:30]} Kxg7 {[%emt 0:00:30]} 12. d4 {[%emt 0:01:30]} (12. h3 $15) 12... Bg4 {[%emt 0:03:30]} (12... cxd4 $17 13. cxd4 Bg4) 13. dxc5 {[%emt 0:04:30]} (13. d5 $11 Nb8 14. c4) 13... dxc5 $15 {[%emt 0:07:30]} 14. h3 {[%emt 0:01:30]} Be6 {[%emt 0:06:30]} 15. Ng5 {[%emt 0:12:30]} Bg8 {[%emt 0:01:30]} 16. Rd1 {[%emt 0:00:30]} (16. Nf3 $15) 16... h6 {[%emt 0:02:30]} (16... Qb6 $17 {Strongly threatening ...Rad8.} 17. Qc2 Qc7) 17. Nf3 {[%emt 0:00:00]} Qxd2 {[%emt 0:07:30]} (17... Qb6 $15 18. Qc2 Rad8 19. Rxd8 Rxd8) 18. Nbxd2 $11 {[%emt 0:00:00]} Rad8 {[%emt 0:00:30]} 19. g4 {[%emt 0:04:30]} Kf6 {[%emt 0:05:30]} 20. Bf1 {[%emt 0:01:30]} Nc8 {[%emt 0:05:30]} 21. Nb3 {[%emt 0:08:30]} b6 {[%emt 0:01:30]} 22. Bb5 {[%emt 0:00:30]} N6e7 {[%emt 0:01:30]} (22... Rxd1+ 23. Rxd1 Rd8 24. Nbd2) 23. Nbd2 {[%emt 0:08:30]} Nd6 $1 {[%emt 0:01:30] Wards off Bc4} 24. Be2 {[%emt 0:00:30]} Rd7 {[%emt 0:01:30]} 25. h4 {[%emt 0:09:30]} (25. Nc4 Bxc4 26. Bxc4 Rfd8) 25... g5 $1 {[%emt 0:05:30]} 26. hxg5+ {[%emt 0:01:30]} hxg5 {[%emt 0:00:30]} 27. Nc4 $1 {[%emt 0:00:30]} Bxc4 {[%emt 0:00:30]} 28. Bxc4 {[%emt 0:00:30]} Rfd8 {[%emt 0:00:30]} 29. Bb3 {[%emt 0:00:00]} Nxe4 {[%emt 0:06:30]} (29... Ng6 {simplifies} 30. Nd2 Nf7 31. Bd5 Nh6) 30. Re1 {[%emt 0:00:00]} (30. Rxd7 $1 $11 Rxd7 31. Re1) 30... Nd2 $2 {[%emt 0:00:30]} (30... Rd3 $1 $19 31. Bd1 (31. Kg2 Rxf3 32. Rxe4 Rfd3 $11) 31... Nd2 32. Nxe5 R3d5) 31. Nxe5 {[%emt 0:00:30]} Rd5 {[%emt 0:00:30]} 32. Bxd5 {[%emt 0:02:30]} Rxd5 {[%emt 0:00:30]} 33. Re2 {[%emt 0:00:00]} f3 $1 {[%emt 0:00:00]} (33... Rxe5 $2 {loses.} 34. Rxd2 c4 35. Rd6+ Re6 36. Rxe6+ Kxe6 37. Re1+ Kd6 38. Rd1+ Kc6 39. Rd8 $18) 34. Rxd2 {[%emt 0:01:00]} Rxd2 {[%emt 0:00:00]} 35. Nxf3 {[%emt 0:01:30]} Rxb2 {[%emt 0:00:30][%mdl 4096] Endgame. KRN-KRN} 36. Rd1 {[%emt 0:00:30] Inhibits Nd5.} Rxa2 {[%emt 0:01:30]} 37. Rd6+ {[%emt 0:00:30]} Kg7 {[%emt 0:02:30]} 38. Nxg5 {[%emt 0:02:30]} Rc2 {[%emt 0:05:30]} 39. Rd7 {[%emt 0:00:30]} Kf8 {[%emt 0:01:30]} 40. Rd8+ {[%emt 0:06:30]} Kg7 {[%emt 0:00:30]} 41. Rd7 {[%emt 0:00:00][%csl LRa7,LRe7]} Kf6 {[%emt 0:02:30] [#]} (41... Kf8 $1 $11 {keeps the balance.}) 42. Ne4+ {[%emt 0:00:00]} ({Much weaker is} 42. Rxa7 $6 Kxg5 43. Rxe7 Rxc3 44. Rg7+ Kf4 $15) ({White must play} 42. f4 $1 $16 {Black must now prevent Rd6+.} Rc1+ 43. Kf2 Rc2+ 44. Kf1 Rc1+ 45. Ke2 Rc2+ 46. Kf1 Rc1+ 47. Ke2 Rc2+ 48. Kd1) 42... Ke6 {[%emt 0:00:30]} 43. Rxa7 {[%emt 0:00:30]} Nd5 {[%emt 0:00:00]} 44. g5 {[%emt 0:06:36] g6 is the strong threat.} Kf5 {[%emt 0:02:00]} ({Better is} 44... Nxc3 $11 45. Nxc3 Rxc3) 45. f3 {[%emt 0:00:24]} (45. Rf7+ $1 $14 Kg6 (45... Kxe4 $2 {too greedy.} 46. g6 $18) 46. Rf8) 45... Nxc3 {[%emt 0:00:30] The position is equal.} 46. Rf7+ {[%emt 0:00:30]} Kg6 {[%emt 0:01:30]} 47. Rf6+ {[%emt 0:00:30]} Kg7 {[%emt 0:00:30] Weighted Error Value: White=0.25 (precise) /Black=0.28 (precise) .  Loses game:     	White=1     	---        Missed win:     	---       	Black=1      Mistake:       	White=5     	Black=5      Inaccurate:     	White=1     	Black=1      OK:         	White=15    	Black=15     Best:        	White=3     	---        Strong:       	White=1     	Black=3} 1/2-1/2

[Event "Turkish Youth Teams U18 2024"]
[Site "Karaman"]
[Date "2024.04.22"]
[Round "4"]
[White "Mutlu, Burak Alp"]
[Black "Yildiz, Tunahan"]
[Result "1/2-1/2"]
[ECO "B50"]
[WhiteElo "1769"]
[BlackElo "1881"]
[Annotator "NA RC COMBH"]
[PlyCount "72"]
[EventDate "2024.04.21"]
[EventType "team-tourn"]
[EventCountry "TUR"]
[SourceTitle "playchess.com"]
[Source "ChessBase"]
[SourceQuality "1"]
[TimeControl "5400+30"]

1. e4 {[%emt 0:01:00]} c5 {[%emt 0:07:00]} 2. Nf3 {[%emt 0:00:30]} d6 {[%emt 0:00:00]} 3. c3 {[%emt 0:00:30]} Nf6 {[%emt 0:00:00]} 4. Be2 {[%emt 0:00:00]} g6 {[%emt 0:00:30]} 5. O-O {[%emt 0:00:00]} Bg7 {[%emt 0:00:30]} 6. Re1 {[%emt 0:00:30]} O-O {[%emt 0:00:30]} 7. Bf1 {[%emt 0:00:30]} Nc6 {[%emt 0:02:30]} 8. h3 {[%emt 0:04:30]} e5 {[%emt 0:04:30]} 9. d4 {[%emt 0:42:30]} exd4 {[%emt 0:14:30]} 10. cxd4 {[%emt 0:00:30]} cxd4 {[%emt 0:00:00] B50: Sicilian: 2...d6, Miscellaneous.} 11. Nxd4 {[%emt 0:02:30]} d5 {[%emt 0:04:00]} (11... Nxd4 $15 12. Qxd4 Be6) 12. Nxc6 {[%emt 0:08:30]} bxc6 {[%emt 0:00:30]} 13. Bg5 {[%emt 0:09:30]} Qb6 {[%emt 0:28:30]} 14. Nc3 {[%emt 0:11:24]} Nxe4 {[%emt 0:04:30]} 15. Nxe4 {[%emt 0:01:44]} dxe4 {[%emt 0:01:30]} 16. Qc2 {[%emt 0:02:07]} (16. Rxe4 $11 {keeps the balance.} Qxb2 17. Rc1) 16... Qxb2 {[%emt 0:09:30]} 17. Qxe4 {[%emt 0:01:28]} Be6 {[%emt 0:06:11]} 18. Qxc6 {[%emt 0:02:01]} Qa3 {[%emt 0:04:13]} 19. Rad1 {[%emt 0:02:28]} Qxa2 {[%emt 0:00:10]} 20. Qa6 {[%emt 0:01:10]} Qxa6 {[%emt 0:00:24]} 21. Bxa6 {[%emt 0:00:00]} Rab8 {[%emt 0:00:41]} (21... Rfb8 $17 22. Be3 h5) 22. Be3 {[%emt 0:00:17]} Rb3 {[%emt 0:01:42]} 23. Rb1 {[%emt 0:03:17] [#]} Ra3 $17 {[%emt 0:01:56]} 24. Bb7 {[%emt 0:00:37]} Rd8 {[%emt 0:01:10]} 25. Bg5 {[%emt 0:02:21]} Rdd3 {[%emt 0:02:08]} 26. Bc8 {[%emt 0:00:30]} h6 {[%emt 0:01:58]} 27. Be7 {[%emt 0:01:57]} Rab3 {[%emt 0:00:27]} 28. Bxe6 {[%emt 0:01:01]} Rxb1 {[%emt 0:00:43]} 29. Rxb1 {[%emt 0:00:30]} fxe6 {[%emt 0:00:00]} 30. Bc5 {[%emt 0:00:19]} a5 {[%emt 0:02:40]} 31. Rb6 {[%emt 0:01:07]} Be5 {[%emt 0:01:11]} 32. g3 {[%emt 0:00:38]} Rd5 {[%emt 0:01:24]} 33. Be3 {[%emt 0:00:30]} Kf7 {[%emt 0:00:30]} 34. Bxh6 {[%emt 0:00:30]} a4 {[%emt 0:00:30]} 35. Rb7+ {[%emt 0:00:30]} Ke8 {[%emt 0:00:30]} 36. Ra7 {[%emt 0:00:00]} Rd1+ {[%emt 0:01:01]} 1/2-1/2